{"text_format":"1","workbook":"xlsx","n_sheets":11,"sheets":["Inhalt","1.","2.","3.","4.","5.","6.","7.","8.","9.","10."],"not_rendered":{"charts":0,"images":0,"macros":1,"external_links":0,"defined_names":16,"comments":0,"pivot_tables":0},"unopened":[],"bounds":{"document_bytes":16777216,"sheet_cells":100000,"rows_first":2000,"rows_last":500,"rows_between":2000,"halvings":0,"cell_chars":16384,"cell_head_chars":4096},"cells_cut":0,"cells_raw":0,"read":"whole","date_system":"1900"}

{"sheet":"Inhalt","index":0,"n_rows":12,"n_cols":11,"rows_kept":12,"cut":false,"hidden":false,"merged":[[8,1,8,9],[9,1,9,9],[10,1,10,9],[11,1,11,9],[2,1,2,9],[3,1,3,9],[4,1,4,9],[5,1,5,9],[6,1,6,9],[7,1,7,9]]}
[null,"Stifterverband für die Deutsche Wissenschaft (2016): Sondererhebung 2013, Fokus wissenschaftliches FuE-Personal, Sonderauswertung, Essen"]
[]
["1.","Datenbeschreibung",null,null,null,null,null,null,null,null,"zur Auswertung"]
["2.","Unternehmen nach Branchengruppe und Unternehmensgroeßenklasse",null,null,null,null,null,null,null,null,"zur Auswertung"]
["3.","Charakteristika der Unternehmen",null,null,null,null,null,null,null,null,"zur Auswertung"]
["4.","Alter",null,null,null,null,null,null,null,null,"zur Auswertung"]
["5.","Abschluss",null,null,null,null,null,null,null,null,"zur Auswertung"]
["6.","Studienfach",null,null,null,null,null,null,null,null,"zur Auswertung"]
["7.","Promotionsquote",null,null,null,null,null,null,null,null,"zur Auswertung"]
["8.","Nationalität",null,null,null,null,null,null,null,null,"zur Auswertung"]
["9.","Haupt-Herkunftsländer",null,null,null,null,null,null,null,null,"zur Auswertung"]
["10.","Befristung",null,null,null,null,null,null,null,null,"zur Auswertung"]

{"sheet":"1.","index":1,"n_rows":56,"n_cols":2,"rows_kept":56,"cut":false,"hidden":false,"merged":[]}
[0.1,"Die Sondererhebung zum wissenschaftlichen Forschungspersonal"]
["Die Wissenschaftsstatistik GmbH im Stifterverband für die deutsche Wissenschaft befragt alle zwei Jahre im Auftrag des Bundesministeriums für Bildung und Forschung (BMBF) alle forschenden Unternehmen in Deutschland zu ihren Aktivitäten im Bereich Forschung und Entwicklung (FuE-Erhebung). Datenbasis für die vorliegende Studie ist eine Sondererhebung zum wissenschaftlichen Forschungspersonal der Unternehmen in Deutschland, die zusammen mit der FuE-Erhebung 2013 durchgeführt wurde. "]
["Die FuE-Erhebung ist zentraler Bestandteil der Berichterstattung Deutschlands zur technologischen und innovatorischen Leistungsfähigkeit im Inland sowie in der EU und der OECD. Die Daten fließen auf nationaler Ebene in den Bundesbericht Forschung und Innovation ein, in das Datenportal des BMBF, in Veröffentlichungen des Statistischen Bundesamtes, einzelner Landesämter und Berichtssysteme privatrechtlicher Art, etwa von Verbänden und Mitgliedsorganisationen. "]
["Die Daten und aufbereiteten Informationen werden von der Bundesregierung und einzelnen Bundesministerien genutzt, um die Leistungsfähigkeit Deutschlands im Bereich der privaten FuE-Aktivitäten im Vergleich mit anderen Staaten sowie auf der interregionalen Ebene Deutschlands bewerten zu können. Diese Informationen über FuE-Ressourcen sind wiederum eine wichtige Entscheidungsbasis für die Ausgestaltung der Innovations-, Bildungs- und Technologiepolitik. Gleiches gilt auch für die Maßstabsebenen der Länder und Regionen. Die Expertenkommission Forschung und Innovation (EFI) nutzt die FuE-Daten, um die technologische und innovatorische Leistungsfähigkeit Deutschlands von unabhängiger wissenschaftlicher Seite einzuschätzen und Empfehlungen über die Ausgestaltung der Forschungs- und Innovationspolitik zu geben."]
["Aufgrund der Zugehörigkeit zum offiziellen statistischen Berichtswesen folgt die Erhebung internationalen Konventionen. Im Zentrum steht das Frascati Handbuch der OECD in seiner aktuellen Ausgabe aus dem Jahr 2002, das die Richtlinien für die Durchführung der FuE-Erhebung beinhaltet und das gemeinschaftlich von den OECD-Mitgliedstaaten entwickelt wurde (vgl. OECD 2002). Im Jahr 2013 wurden, wie in allen ungeraden Jahren, alle potenziell FuE treibenden Unternehmen befragt (Vollerhebung). In den geraden Jahren werden die FuE-Daten nur bei ausgewählten FuE-Unternehmen erhoben (Kurzerhebung). "]
["Im Standardfragebogen werden jedes Jahr grundlegende Daten zum FuE-Personal erhoben: Anzahl, Vollzeitäquivalente und Geschlecht der wissenschaftlichen, technischen und sonstigen FuE-Beschäftigten, Anzahl, Vollzeitäquivalente und Geschlecht aller Beschäftigten des Unternehmens und Anteil der Ausgaben für FuE-Personal an den internen FuE-Aufwendungen. In der aktuellen Welle wurde der Personal-Fragenblock um die Kategorien Alter und Honorarkräfte erweitert. Zusätzlich wurde der Sondererhebung zum Thema wissenschaftliches FuE-Personal ein umfangreicher Vertiefungsfragebogen gewidmet. Themen im genannten Vertiefungsfragebogen waren u.a. Nationalität, Studienfach und -abschluss, Entsendung und Aufnahme von wissenschaftlichem Forschungspersonal, Personalentwicklung, Einstiegslöhne, Schwierigkeiten bei der Personalsuche sowie Relevanz und Erfolg von Anwerbungsstrategien. Der Fragebogen ist dem Bericht angehängt."]
["Neben der inhaltlichen Passgenauigkeit und Tiefe der Fragen war wichtig, dass sie von der Geschäftsführung beziehungsweise dem Forschungspersonal beantwortet werden konnten und die Möglichkeit bestand, Politikempfehlungen daraus abzuleiten. Um antwortende Unternehmen durch den gesamten Fragebogenumfang nicht zu demotivieren, war der Vertiefungsfragebogen an den Standardfragebogen, optisch abgesetzt, angehängt. Bei der Erstellung des Fragebogens unterstützte das wissenschaftliche Beratungszentrum GESIS die Wissenschaftsstatistik methodisch. In den Vertiefungsfragebogen zum FuE-Personal floss zudem das Wissen von wissenschaftlichen Kooperationspartnern, speziell mit dem Schwerpunkt Arbeitsmarktforschung, und den Fachabteilungen des BMBF ein. Wir führten außerdem im Vorfeld umfangreiche schriftliche Pretests mit Wissenschaftlerinnen und Wissenschaftlern, Unternehmen und dem BMBF durch. "]
["Die FuE-Erhebung ist eine Vollerhebung aller Unternehmen in Deutschland, die Forschungsaktivitäten aufweisen beziehungsweise von denen vermutet wird, dass sie FuE-aktiv sind. Da allerdings kein Verzeichnis FuE treibender oder FuE-verdächtiger Unternehmen in Deutschland zur Verfügung steht und somit die echte Grundgesamtheit nicht bekannt ist, muss sie aus unterschiedlichen Quellen hergeleitet werden. Die Grundgesamtheit der FuE-Erhebung speist sich aus dem bestehenden Adressdatenbestand der Wissenschaftsstatistik, der seit Beginn der Erhebung Mitte der 1970er Jahre gepflegt wird. Zudem werden für jede Erhebung unterschiedliche externe Informationsquellen herangezogen, um die Gesamtheit der forschenden Unternehmen stetig zu aktualisieren. Eine wichtige externe Informationsquelle ist die Förderdatenbank des Bundes, in der alle Unternehmen erfasst werden, die eine Bundes-FuE-Förderung erhalten. "]
["Weitere Quellen sind Datenbanken über Patentierungsaktivitäten, die Geschäftsberichte der Unternehmen, Presseberichte sowie Berichte von Verbänden. Zudem werden in regelmäßigen Abständen forschungsintensive Wirtschaftszweige komplett in die Erhebung aufgenommen, um auch hier sicherzustellen, dass die Grundgesamtheit bestmöglich approximiert wird. In der Erhebung 2013 wurden daher alle Unternehmen der Wirtschaftszweige 26 (Herstellung von DV-Geräten, elektronischen und optischen Erzeugnisse) und 72 (Wissenschaftliche FuE) in die Erhebung aufgenommen, sofern sie mindestens sechs Beschäftigte aufweisen."]
["Im Mai 2014 erhielten 25.395 Unternehmen den Standard- und den Vertiefungsfragebogen, um über FuE-Aktivitäten im Jahr 2013 zu berichten. Von gut 70 Prozent dieser angeschriebenen Unternehmen ist bekannt, dass sie FuE-aktiv sind. Bei den restlichen etwa 30 Prozent der angeschriebenen Unternehmen besteht nur ein geringer FuE-Verdacht. Die Befragten hatten die Möglichkeit, einen beigefügten papiergestützten Fragebogen oder einen durch einen Zugangscode geschützten Onlinefragebogen auszufüllen. Zwei Nachfassaktionen wurden durchgeführt, schriftlich und telefonisch. "]
["Insgesamt meldeten 5.451 Unternehmen selbst ihre FuE-Zahlen für das Jahr 2013. Dies entspricht 36,6 Milliarden Euro interner FuE-Aufwendungen beziehungsweise 68 Prozent der gesamten erfassten internen FuE. Weitere 2.420 Unternehmen gaben an, dass sie 2013 nicht FuE-aktiv waren. Für 2.264 Unternehmen konnten verlässliche FuE-Informationen aus Geschäftsberichten oder über die Förderdatenbank gewonnen werden (10 Milliarden beziehungsweise 19 Prozent der internen FuE). Bei den restlichen 5.875 Unternehmen konnten die FuE-Kennzahlen aufgrund von Vorjahresmeldungen berechnet werden (insgesamt 6,9 Milliarden Euro beziehungsweise 13 Prozent der erfassten internen FuE). Der FuE-Rücklauf betrug für die Gruppe der forschungsaktiven Unternehmen knapp 30 Prozent. Bei der Verdachtsgruppe lag er mit 7 Prozent entsprechend darunter. Final liegen Informationen von 13.590 Unternehmen vor. "]
["An der Sonderbefragung zum FuE-Personal beteiligten sich 1.873 dieser insgesamt 13.590 Unternehmen, also 34 Prozent der 5.451 Unternehmen, die ihre FuE-Daten gemeldet hatten. "]
[0.2,"Merkmale der Stichprobe"]
["Die 1.873 Unternehmen beschäftigten am Ende des Geschäftsjahres 2013 insgesamt über eine halbe Million Personen. Davon zählten 62.368 Personen zum FuE-Personal, führten also direkte FuE-Arbeiten durch oder erbrachten indirekte Dienstleistungen für FuE-Aktivitäten, wie z.B. in Management und Verwaltung. Die Gruppe des gesamten FuE-Personals umfasst wissenschaftliches, technisches oder sonstiges FuE-Personal (vgl. OECD 2002). 30.633 Personen des FuE-Personals zählen zum wissenschaftlichen Bereich. Sie bilden den Fokus der vorliegenden Studie und umfassen alle Personen im Unternehmen, die neue Erkenntnisse, Produkte, Verfahren, Methoden und Systeme konzipieren oder schaffen, einschließlich Führungskräfte der FuE-Verwaltung. Generell ist zu beachten, dass in der Studie die forschenden Unternehmen der Stichprobe beschreiben werden. Aus statistischen Gründen sind Hochrechnungen auf die Grundgesamtheit nicht belastbar. Tatsächlich ist die Grundgesamtheit aller forschenden Unternehmen in Deutschland durch die hohe Dynamik in diesem Feld nicht bekannt. Zudem ist unsere Stichprobe keine Zufallsstichprobe aus der Vollerhebung, da die Teilnahme der forschenden Unternehmen an der Erhebung grundsätzlich freiwillig ist."]
["Die Stichprobe der beteiligten 1.873 Unternehmen bildet gut die Gruppe der 13.589 FuE-treibenden Unternehmen der Vollerhebung ab (vgl. Tabelle 12). Im Folgenden ist eine Schätzung der möglichen Antwortverzerrung in der Stichprobe dargestellt, eine so genannte Nonresponse-Analyse, in der die marginalen Effekte der Teilnahme an der Personalerhebung anhand relevanter Unternehmenscharakteristika gezeigt werden. Die Schätzung zeigt eine hohe Genauigkeit der Stichprobe, die sich dadurch ergibt, dass die forschenden Unternehmen der Stichprobe den aus der Vollerhebung bekannten forschenden Unternehmen in relevanten Strukturmerkmalen sehr ähnlich sind. "]
[]
["Die Nonresponse-Analyse wird mit einer Probit-Regression durchgeführt. Ziel ist es, die Wahrscheinlichkeit, dass ein Unternehmen, das an der Erhebung teilgenommen hat, auch an der Personalerhebung teilgenommen hat, durch Unternehmenscharakteristika zu bestimmen. Um sicherzustellen, dass diese Wahrscheinlichkeit innerhalb der logischen Grenzen von 0 und 1 bleibt, wird die Wahrscheinlichkeit einer Teilnahme einer Probit-Transformation (mit der Verteilungsfunktion der Standardnormalverteilung) unterzogen. Interpretiert werden Effektstärke und statistische Signifikanz der geschätzten Koeffizienten. Werden die Koeffizienten mit 100 multipliziert, zeigt sich, um wie viele Prozentpunkte sich die Teilnahmewahrscheinlichkeit in etwa verändert, wenn sich der entsprechende Einflussfaktor um eine Einheit erhöht (Effektstärke). Angenommen, ein Unternehmen stammt aus der Dienstleistungs- oder IT-Branche, so erhöht sich die (erwartete) Teilnahmewahrscheinlichkeit um 4,1 Prozentpunkte; erhöht sich der Anteil des wissenschaftlichen Forschungspersonals über 54 Jahre um 1 Prozent, so reduziert sich die (erwartete) Teilnahmewahrscheinlichkeit um 5,6 Prozentpunkte. Die anderen relevanten Einflussfaktoren, die geprüft wurden, haben keinen signifikanten Einfluss auf die Teilnahmewahrscheinlichkeit. "]
[]
["Tabelle 13: Hohe Reliabilität der Stichprobe. "]
["Test auf mögliche Verzerrung der Stichprobe zum wissenschaftlichen Forschungspersonal in der Wirtschaft"]
[]
["Variable","an Personalerhebung teilgenommen"]
["Interne FuE-Aufwendungen im Geschäftsjahr 2013 (in Tsd. Euro)",0]
[null,-0.42]
["Umsatzhöhe im Geschäftsjahr 2013 (in Tsd. Euro)","-0.000*"]
[null,-0.05]
["Gesamtzahl Beschäftigte 2013",0]
[null,-0.32]
["Anteil der Forschungspersonalaufwendungen an allen internen FuE-Aufwendungen",0.107]
[null,-0.78]
["Frauenanteil am wiss. Forschungspersonal (VZÄ)",-7.2999999999999995E-2]
[null,-0.8]
["Anteil des wiss. Forschungspersonals über 54 Jahren","-0.560*"]
[null,-0.03]
["Dienstleistung- oder IT-Branche","0.412*"]
[null,-0.01]
["Constant",1.6850000000000001]
["Quelle: Stifterverband Wissenschaftsstatistik. Eigene Berechnungen. Anmerkung: * p<0.05; ** p<0.01. Die P-Values der T-Statistik befinden sich unter den Koeffizienten, Sterne an den marginalen Effekten indizieren das Signifikanzniveau."]
[]
["Einzig die Dienstleistungs- und die IT-Branche sind in der Stichprobe signifikant häufiger als in der Vollerhebung vertreten. Der geringere Anteil des wissenschaftlichen Forschungspersonals über 54 Jahre ist eventuell auf diesen Branchenunterschied in der Zusammensetzung der Stichprobe zurückzuführen. Die Differenz in der Umsatzhöhe im Geschäftsjahr 2013 zwischen Stichprobe und Vollerhebung ist vernachlässigbar. Es gibt keine signifikante Verzerrung hinsichtlich Unternehmensgröße, FuE-Aufwendungen oder dem Frauenanteil. Dank der Größe der Stichprobe – 1.873 Unternehmen – können Branchen-, wie auch Unternehmensgrößenvergleiche durchgeführt werden. Im Folgenden sind die Stichprobe nach Branchengruppe, Unternehmensgröße und einigen weitergehenden Charakteristika wie FuE-Aufwendungen und -Intensität beschrieben. "]
[" "]
[0.3,"Statistische Definition des wissenschaftlichen FuE-Personals"]
["Das FuE-Personal wird in der internationalen Statistik in drei Kategorien eingeteilt: 1. wissenschaftliches FuE-Personal: Personen, die neue Erkenntnisse, Produkte, Verfahren, Methoden und Systeme konzipieren oder schaffen, einschließlich Führungskräfte der FuE-Verwaltung. Oft sind dies Wissenschaftlerinnen und Wissenschaftler oder Ingenieurinnen und Ingenieure, die ein Studium an einer Hochschule abgeschlossen haben; 2. technisches FuE-Personal: Personen, die technische Hilfsarbeiten in Verbindung mit FuE, normalerweise unter Leitung und Aufsicht des wissenschaftlichen Forschungspersonals, ausführen; und 3. sonstiges FuE-Personal: Facharbeiterinnen und Facharbeiter, ungelernte und angelernte Hilfskräfte sowie Lagerverwalterinnen und -verwalter, Verwaltungssachbearbeiterinnen und -sachbearbeiter und Schreibkräfte, die direkt im FuE-Bereich tätig sind. Die vorliegende Studie untersucht das wissenschaftliche FuE-Personal in den Unternehmen am Ende des Geschäftsjahres 2013. Im Folgenden bezeichnen wir diese Gruppe sowohl als wissenschaftliches FuE-Personal oder Forschungspersonal als auch als Forscherinnen und Forscher, um die Lesbarkeit des Textes zu erhöhen."]
[]
[0.4,"Ansprechpartner"]
[]
["Dr. Julia Schneider"]
["Projektleiterin und wissenschaftliche Referentin"]
[]
["SV gemeinnützige Gesellschaft für Wissenschaftsstatistik mbH"]
["Hauptstadtbüro des Stifterverbandes für die Deutsche Wissenschaft"]
["Pariser Platz 6, 10117 Berlin"]
[]
["Tel.: 030 / 32 29 82 – 517 "]
[]
["E-Mail: julia.schneider@stifterverband.de"]

{"sheet":"2.","index":2,"n_rows":30,"n_cols":10,"rows_kept":30,"cut":false,"hidden":false,"merged":[]}
[]
["Unternehmen nach Branchengruppe und Unternehmensgroessenklasse, 2013 (in Prozent)"]
[null,"Chemiebranche","Pharmabranche","Elektrobranche","Maschinenbaubranche","KFZ-Branche","IKT-Branche","Dienstleistungsbranche","Sonstige Branchen (sehr heterogen)","Total"]
["Unternehmensgroessenklasse"]
["unter 100 Beschäftigte (n=1,264)",45.545000000000002,61.765000000000001,69.164000000000001,53.558,24.242000000000001,91.123999999999995,93.123000000000005,57.067999999999998,67.484999999999999]
["100-249 Beschäftigte (n=267)",23.762,8.8239999999999998,14.121,20.974,18.181999999999999,6.5090000000000003,4.298,17.975999999999999,14.255000000000001]
["250-499 Beschäftigte (n=125)",11.881,8.8239999999999998,5.476,9.3629999999999995,12.121,"x",1.4330000000000001,9.7729999999999997,6.6740000000000004]
["500 und mehr Beschäftigte (n=217)",18.812000000000001,20.588000000000001,11.239000000000001,16.105,45.454999999999998,1.7749999999999999,1.1459999999999999,15.183,11.586]
[]
["Total (n=1,873)",100,100,100,100,100,100,100,100,100]
[]
[]
["Unternehmen nach Unternehmensgroessenklasse  und Branchengruppe, 2013 (in Prozent)"]
[null,"unter 100 Beschäftigte","100-249 Beschäftigte","250-499 Beschäftigte","500 und mehr Beschäftigte","Total"]
["Branchengruppe"]
["Chemiebranche (n=101)",3.6389999999999998,8.9890000000000008,9.6,8.7560000000000002,5.3920000000000003]
["Pharmabranche (n=34)",1.661,1.1240000000000001,2.4,3.226,1.8149999999999999]
["Elektrobranche (n=347)",18.986999999999998,18.352,15.2,17.972000000000001,18.526]
["Maschinenbaubranche (n=267)",11.313000000000001,20.974,20,19.815999999999999,14.255000000000001]
["KFZ-Branche (n=33)",0.63300000000000001,2.2469999999999999,3.2,6.9119999999999999,1.762]
["IKT-Branche (n=169)",12.183999999999999,4.12,"x",1.3819999999999999,9.0229999999999997]
["Dienstleistungsbranche (n=349)",25.712,5.6180000000000003,4,1.843,18.632999999999999]
["Sonstige Branchen (sehr heterogen) (n=573)",25.87,38.576999999999998,44.8,40.091999999999999,30.593]
[]
["Total (n=1,873)",100,100,100,100,100]
[]
["Quelle: Wissenschaftsstatistik Stifterverband. Werte, die auf weniger als drei Unternehmen beruhen, werden aus Datenschutzgründen nicht gezeigt (= x). Bei der Pharma- und Kfz-Branche werden die Fallzahlen bei einer zusätzlichen Unterteilung kleiner als 15."]
[]
[]
["Gemessen an der Menge der Unternehmen, sind die Dienstleistungsbranche (19 Prozent), die Elektro- und die Maschinenbaubranche am größten (19 und 14 Prozent, nicht abgebildet). Kfz-, Pharma- und Chemieunternehmen machen insgesamt nur 9 Prozent aller forschenden Unternehmen der Stichprobe aus. Ähnlich wie in der Gesamtstichprobe der forschenden Unternehmen der FuE-Erhebung sind vier Fünftel der Unternehmen kleine Unternehmen mit bis zu 249 Beschäftigten. 12 Prozent der Unternehmen haben 500 und mehr Beschäftigte – das sind meist die forschenden Kfz-, Pharma- und Chemieunternehmen, die gleichzeitig besonders hohe FuE-Aufwendungen haben (siehe folgende Tabelle). Dienstleistungs- und IKT-Unternehmen sind häufig sehr klein und haben vergleichsweise geringe FuE-Aufwendungen, allerdings hohe FuE-Intensitäten. "]

{"sheet":"3.","index":3,"n_rows":18,"n_cols":10,"rows_kept":18,"cut":false,"hidden":false,"merged":[]}
[]
["Unternehmen nach Branchengruppe, 2013"]
[null,"Gesamtzahl Beschäftigte 2013 (HC)",null,"Interne FuE-Aufwendungen im Geschäftsjahr 2013 (in Tsd. Euro)","FuE-Intensitaet als Anteil der internen FuE-Ausgaben am Umsatz 2013 (in Prozent)","Anteil der Forschungspersonalaufwendungen an allen internen FuE-Aufwendungen 2013 (in Prozent)","Frauenanteil am wiss. Forschungspersonal (VZAE)","Anteil des wiss. Forschungspersonals ueber 54 Jahren","Ostdeutschland","Umsatzhoehe im Geschäftsjahr 2013 (in Tsd. Euro)"]
["Branchengruppe"]
["Chemiebranche (n=101)",1108.604,null,15348.575000000001,5.5E-2,0.69899999999999995,0.28699999999999998,0.19800000000000001,0.16800000000000001,467638.163]
["Pharmabranche (n=34)",802.35299999999995,null,37589.440999999999,0.28499999999999998,0.59299999999999997,0.49399999999999999,0.14199999999999999,0.35299999999999998,299406.45400000003]
["Elektrobranche (n=347)",241.58799999999999,null,3815.97,0.123,0.77400000000000002,8.5000000000000006E-2,0.191,0.30499999999999999,57779.767999999996]
["Maschinenbaubranche (n=267)",459.99599999999998,null,3840.2510000000002,6.9000000000000006E-2,0.68700000000000006,0.115,0.154,0.23200000000000001,105879.765]
["KFZ-Branche (n=33)",2521.6970000000001,null,59723.851000000002,0.09,0.70299999999999996,7.4999999999999997E-2,0.23599999999999999,0.121,1442462.7879999999]
["IKT-Branche (n=169)",751.31399999999996,null,1987.9469999999999,0.23100000000000001,0.876,0.115,7.2999999999999995E-2,0.28399999999999997,141400.503]
["Dienstleistungsbranche (n=349)",43.238,null,920.32100000000003,0.442,0.75600000000000001,0.27300000000000002,0.154,0.41799999999999998,6193.0879999999997]
["Sonstige Branchen (sehr heterogen) (n=573)",519.28700000000003,null,2113.8240000000001,7.6999999999999999E-2,0.70499999999999996,0.22800000000000001,0.161,0.32300000000000001,231378.50200000001]
[]
["Total (n=1,873)",463.81700000000001,null,4814.201,0.16900000000000001,0.73799999999999999,0.192,0.16,0.31,166561.65299999999]
[]
["Quelle: Stifterverband Wissenschaftsstatistik. Anmerkung: Die Charakteristika, also Gesamtzahl Beschäftigte, interne FuE-Aufwendungen, FuE-Intensität, Anteil der Forschungspersonalaufwendungen und Umsatzhöhe pro Unternehmen, verstehen sich pro Unternehmen."]
[]
["Gemessen an der FuE-Intensität, also dem Anteil der internen FuE-Aufwendungen am Umsatz, wird deutlich, dass die kleinen Dienstleistungs- und IKT-Unternehmen sogar eher mehr forschen als große. "]

{"sheet":"4.","index":4,"n_rows":21,"n_cols":7,"rows_kept":21,"cut":false,"hidden":false,"merged":[]}
["Alter des wiss. Forschungspersonals - Unternehmen nach Unternehmensgroessenklasse und Branchengruppe, 2013 (in Prozent)"]
[null,"bis 24 Jahre"," 25 bis 34 Jahre"," 35 bis 44 Jahre"," 45 bis 54 Jahre"," 55 bis 64 Jahre"," 65 Jahre und aelter"]
["Unternehmensgroessenklasse"]
["unter 100 Beschäftigte (n=1,264)",2.4220000000000002,26.9,26.646000000000001,27.096,14.012,2.9239999999999999]
["100-249 Beschäftigte (n=267)",1.86,25.818999999999999,29.521999999999998,27.466000000000001,14.936,0.39700000000000002]
["250-499 Beschäftigte (n=125)",1.1919999999999999,22.292000000000002,29.718,33.655000000000001,12.69,0.45300000000000001]
["500 und mehr Beschäftigte (n=217)",2.4540000000000002,25.314,30.23,29.114999999999998,11.807,1.08]
[]
["Branchengruppe"]
["Chemiebranche (n=101)",2.2559999999999998,25.32,25.535,27.052,17.669,2.1680000000000001]
["Pharmabranche (n=34)",3.3929999999999998,23.006,30.774000000000001,28.646999999999998,9.0020000000000007,5.1779999999999999]
["Elektrobranche (n=347)",1.9890000000000001,24.533999999999999,26.372,27.978999999999999,16.105,3.0209999999999999]
["Maschinenbaubranche (n=267)",2.371,24.346,26.54,31.35,13.669,1.7250000000000001]
["KFZ-Branche (n=33)",2.246,18.911999999999999,23.358000000000001,31.873000000000001,19.856999999999999,3.7530000000000001]
["IKT-Branche (n=169)",3.2719999999999998,34.520000000000003,30.582999999999998,24.337,5.9829999999999997,1.3049999999999999]
["Dienstleistungsbranche (n=349)",2.2170000000000001,30.318999999999999,29.834,22.19,13.852,1.5880000000000001]
["Sonstige Branchen (sehr heterogen) (n=573)",2,23.995999999999999,27.452999999999999,30.472000000000001,13.958,2.12]
[]
["Total (n=1,873)",2.254,26.222000000000001,27.709,27.861999999999998,13.795999999999999,2.1579999999999999]
[]
["Quelle: Wissenschaftsstatistik Stifterverband. Bei der Pharma- und Kfz-Branche werden die Fallzahlen bei einer zusätzlichen Unterteilung kleiner als 15."]

{"sheet":"5.","index":5,"n_rows":21,"n_cols":9,"rows_kept":21,"cut":false,"hidden":false,"merged":[]}
["Hochschulabschluss des wiss. Forschungspersonals - Unternehmen nach Unternehmensgroessenklasse und Branchengruppe, 2013 (in Prozent)"]
[null,"Bachelor Universitaet"," Bachelor Fachhochschule"," Master/Diplom/Magister/Staatsexamen Universitaet"," Master/Diplom Fachhochschule"," Promotion"," Habilitation","Nicht bekannt"," Total"]
["Unternehmensgroessenklasse"]
["unter 100 Beschäftigte (n=1,264)",4.5259999999999998,9.5250000000000004,32.814,24.553000000000001,19.007000000000001,0.96599999999999997,8.609,100]
["100-249 Beschäftigte (n=267)",3.427,8.4220000000000006,30.617000000000001,27.120999999999999,16.571999999999999,0.55700000000000005,13.284000000000001,100]
["250-499 Beschäftigte (n=125)",4.67,11.494999999999999,26.283999999999999,23.446000000000002,16.859000000000002,0.127,17.117000000000001,100]
["500 und mehr Beschäftigte (n=217)",3.8180000000000001,9.609,28.68,25.911000000000001,16.882000000000001,7.6999999999999999E-2,15.022,100]
[]
["Branchengruppe"]
["Chemiebranche (n=101)",4.141,5.2069999999999999,13.492000000000001,22.488,40.152999999999999,0.48899999999999999,14.029,100]
["Pharmabranche (n=34)",2.8570000000000002,1.429,28.428999999999998,12.929,51.606000000000002,1.3109999999999999,1.44,100]
["Elektrobranche (n=347)",3.9790000000000001,10.646000000000001,32.005000000000003,31.416,13.896000000000001,0.193,7.8639999999999999,100]
["Maschinenbaubranche (n=267)",3.6970000000000001,13.121,31.440999999999999,29.917999999999999,9.92,0.44500000000000001,11.458,100]
["KFZ-Branche (n=33)",5.85,6.5350000000000001,28.611999999999998,32.081000000000003,2.5880000000000001,3.7040000000000002,20.63,100]
["IKT-Branche (n=169)",7.0190000000000001,8.5129999999999999,39.475999999999999,21.797000000000001,13.956,0.19900000000000001,9.0389999999999997,100]
["Dienstleistungsbranche (n=349)",4.2060000000000004,6.4459999999999997,38.061999999999998,17.315999999999999,28.36,1.923,3.6869999999999998,100]
["Sonstige Branchen (sehr heterogen) (n=573)",4.0419999999999998,10.763,28.545000000000002,25.358000000000001,14.85,0.53300000000000003,15.91,100]
[]
["Total (n=1,873)",4.3029999999999999,9.5120000000000005,31.606999999999999,24.989000000000001,18.282,0.755,10.552,100]
[]
["Quelle: Wissenschaftsstatistik Stifterverband. Bei der Pharma- und Kfz-Branche werden die Fallzahlen bei einer zusätzlichen Unterteilung kleiner als 15."]

{"sheet":"6.","index":6,"n_rows":57,"n_cols":11,"rows_kept":57,"cut":false,"hidden":false,"merged":[[19,0,19,5]]}
["Studienfach des wiss. Forschungpersonals - Unternehmen nach Unternehmensgrößenklasse und Branchengruppe, 2013"]
[null,"T","MIN","MGS","RWS","AFEV","SKK","SO","KEIN","NA","Total"]
["Unternehmensgrößenklasse"]
["unter 100 Beschäftigte",0.55023,0.27378000000000002,1.2829999999999999E-2,2.5950000000000001E-2,2.0790000000000003E-2,2.48E-3,2.4980000000000002E-2,7.2870000000000004E-2,1.61E-2,1]
["100-249 Beschäftigte",0.57918000000000003,0.21013000000000001,1.4199999999999998E-3,8.9600000000000009E-3,4.1169999999999998E-2,8.3000000000000001E-4,1.8929999999999999E-2,0.1057,3.3690000000000005E-2,1]
["250-499 Beschäftigte",0.60943999999999998,0.21640999999999999,6.4099999999999999E-3,6.8000000000000005E-4,1.41E-2,1.7100000000000001E-3,2.7779999999999999E-2,5.364E-2,6.9830000000000003E-2,1]
["500 und mehr Beschäftigte",0.63409000000000004,0.19023000000000001,1.9599999999999999E-3,1.269E-2,4.4299999999999999E-3,4.0400000000000002E-3,4.3200000000000001E-3,8.0950000000000008E-2,6.7279999999999993E-2,1]
[]
["Branchengruppe"]
["Chemiebranche",0.28771000000000002,0.50461,1.6100000000000001E-3,4.3899999999999998E-3,4.4760000000000001E-2,0,2.4840000000000001E-2,7.6700000000000004E-2,5.5380000000000006E-2,1]
["Pharmabranche",0.13406999999999999,0.62295999999999996,0.14185,7.3999999999999999E-4,3.6670000000000001E-2,0,4.444E-2,1.9259999999999999E-2,0,1]
["Elektrobranche",0.65654999999999997,0.22531999999999999,3.7799999999999999E-3,6.7200000000000003E-3,3.3E-4,4.4999999999999999E-4,1.7219999999999999E-2,6.5730000000000011E-2,2.3889999999999998E-2,1]
["Maschinenbaubranche",0.76647999999999994,9.69E-2,0,8.6899999999999998E-3,3.4300000000000003E-3,4.3999999999999996E-4,1.204E-2,7.9909999999999995E-2,3.211E-2,1]
["KFZ-Branche",0.67862,7.2410000000000002E-2,0,1.6549999999999999E-2,0,0,3.9660000000000001E-2,0.13861999999999999,5.4139999999999994E-2,1]
["IKT-Branche",0.25467000000000001,0.59438999999999997,4.5500000000000002E-3,4.9109999999999994E-2,0,8.8100000000000001E-3,0.01,5.953E-2,1.8950000000000002E-2,1]
["Dienstleistungsbranche",0.54734000000000005,0.31303999999999998,1.068E-2,3.9620000000000002E-2,2.4369999999999999E-2,5.47E-3,2.128E-2,3.1600000000000003E-2,6.5900000000000004E-3,1]
["Sonstige Branchen",0.59133000000000002,0.14471000000000001,1.391E-2,1.7559999999999999E-2,4.4470000000000003E-2,1.1299999999999999E-3,3.1640000000000001E-2,0.11667,3.8580000000000003E-2,1]
[]
["Total",0.56708999999999998,0.25207999999999997,9.6299999999999997E-3,2.044E-2,2.1560000000000003E-2,2.3499999999999997E-3,2.213E-2,7.7160000000000006E-2,2.7539999999999999E-2,1]
["Studienfach des wissenschaftlichen Forschungpersonals - Unternehmen nach Unternehmensgrößenklasse und Branchengruppe, 2013"]
[null,"MIN","T","Restliche Studienfächer","Kein Studien-abschluss","Unbekannt"]
["Unternehmensgrößenklasse"]
["unter 100 Beschäftigte",0.27378000000000002,0.55023,{"$f":"D4+E4+F4+G4+H4","v":8.703000000000001E-2},{"$f":"I4","v":7.2870000000000004E-2},1.61E-2]
["100-249 Beschäftigte",0.21013000000000001,0.57918000000000003,{"$f":"D5+E5+F5+G5+H5","v":7.1309999999999998E-2},0.1057,3.3690000000000005E-2]
["250-499 Beschäftigte",0.21640999999999999,0.60943999999999998,{"$f":"D6+E6+F6+G6+H6","v":5.0680000000000003E-2},5.364E-2,6.9830000000000003E-2]
["500 und mehr Beschäftigte",0.19023000000000001,0.63409000000000004,{"$f":"D7+E7+F7+G7+H7","v":2.7440000000000003E-2},8.0950000000000008E-2,6.7279999999999993E-2]
[]
["Branchengruppe"]
["Chemiebranche",0.50461,0.28771000000000002,{"$f":"D10+E10+F10+G10+H10","v":7.5600000000000001E-2},{"$f":"I10","v":7.6700000000000004E-2},5.5380000000000006E-2]
["Pharmabranche",0.62295999999999996,0.13406999999999999,0.22370000000000001,1.9259999999999999E-2,0]
["Elektrobranche",0.22531999999999999,0.65654999999999997,2.8500000000000001E-2,6.5730000000000011E-2,2.3889999999999998E-2]
["Maschinenbaubranche",9.69E-2,0.76647999999999994,2.46E-2,7.9909999999999995E-2,3.211E-2]
["KFZ-Branche",7.2410000000000002E-2,0.67862,5.6209999999999996E-2,0.13861999999999999,5.4139999999999994E-2]
["IKT-Branche",0.59438999999999997,0.25467000000000001,7.2469999999999993E-2,5.953E-2,1.8950000000000002E-2]
["Dienstleistungsbranche",0.31303999999999998,0.54734000000000005,0.10142000000000001,3.1600000000000003E-2,6.5900000000000004E-3]
["Sonstige Branchen",0.14471000000000001,0.59133000000000002,0.10871000000000001,0.11667,3.8580000000000003E-2]
[null,null,null,0,0,0]
["Total",0.25207999999999997,0.56708999999999998,7.6109999999999997E-2,7.7160000000000006E-2,2.7539999999999999E-2]
[]
["Quelle: Wissenschaftsstatistik Stifterverband. Anmerkung: MIN = Mathematik, Informatik, Naturwissenschaften, T=Technik/Ingenieurwissenschaften, restliche Studienfächer: Medizin, Gesundheitswissenschaften, Sport, Rechts-, Wirtschafts- und Sozialwissenschaften, Agrar-, Forst- und Ernährungswissenschaften, Veterinärmedizin, Sprach- und Kulturwissenschaften, Kunstwissenschaft, sonstige Fächer. Bei der Pharma- und Kfz-Branche werden die Fallzahlen, abgesehen von den MINT-Werten, kleiner als 15."]
[]
[]
[]
[]
[]
[]
[]
[]
[]
[]
[]
[]
[]
["Wissenschaftliches und künstlerisches Personal der Hochschulen 2013"]
["Hauptberuflich"]
["Insge-","Anzahl","Ingenieurwissenschaften","Informatik Mathematik Naturwissenschaften","Medizin Gesundheitswissenschaften Sport","Rechts- Wirtschafts- und Sozialwissenschaften","Agrar- Forst- und Ernährungswissenschaften","Sprach- und Kulturwissenschaften Kunstwissenschaft","Sonstige Fächer","Ohne Studienabschluss","Nicht bekannt"]
["samt",233259,37663,52955,59213,30296,4466,34613,14053]

{"sheet":"7.","index":7,"n_rows":6,"n_cols":3,"rows_kept":6,"cut":false,"hidden":false,"merged":[]}
["Promovierendes Forschungspersonal, 2013 (in Prozent)"]
[null,"Promovierendenanteil am Forschungspersonal (VZAE)","Promovierendenanteil am Forschungspersonal"]
[]
["Total (n=68)",4.7,4.9000000000000004]
[]
["Quelle: Wissenschaftsstatistik Stifterverband. Durch die hohen Ausfälle bei der Frage war eine Branchen- und Betriebsgrößenauswertung nicht möglich."]

{"sheet":"8.","index":8,"n_rows":21,"n_cols":5,"rows_kept":21,"cut":false,"hidden":false,"merged":[[0,0,0,4]]}
["Nationalitaet des wiss. Forschungspersonals - Unternehmen nach Unternehmensgroessenklasse und Branchengruppe, 2013 (in Prozent)"]
[null,"Deutsche Staatsangehoerigkeit"," EU-Staatsangehoerigkeit"," Andere Staatsangehoerigkeit"," Anteil der Unternehmen mit nicht-deutschem Forschungspersonal"]
["Unternehmensgroessenklasse"]
["unter 100 Beschäftigte (n=1,264)",95.451999999999998,2.1389999999999998,2.4089999999999998,16.2]
["100-249 Beschäftigte (n=267)",96.069000000000003,2.3319999999999999,1.599,22.5]
["250-499 Beschäftigte (n=125)",95.081000000000003,2.1629999999999998,2.7570000000000001,27.200000000000003]
["500 und mehr Beschäftigte (n=217)",94.68,3.0630000000000002,2.2570000000000001,44.7]
[]
["Branchengruppe"]
["Chemiebranche (n=101)",96.099000000000004,1.9750000000000001,1.925,23.799999999999997]
["Pharmabranche (n=34)",93.391000000000005,3.0009999999999999,3.609,23.5]
["Elektrobranche (n=347)",94.363,2.7530000000000001,2.8839999999999999,27.1]
["Maschinenbaubranche (n=267)",96.105000000000004,2.1269999999999998,1.768,20.200000000000003]
["KFZ-Branche (n=33)",94.066999999999993,1.0669999999999999,4.867,27.3]
["IKT-Branche (n=169)",93.930999999999997,2.9980000000000002,3.0710000000000002,25.4]
["Dienstleistungsbranche (n=349)",95.146000000000001,2.0249999999999999,2.8290000000000002,21.5]
["Sonstige Branchen (sehr heterogen) (n=573)",96.498000000000005,2.0310000000000001,1.4710000000000001,15.5]
[null,null,null,null,0]
["Total (n=1,873)",95.435000000000002,2.2650000000000001,2.2999999999999998,21.099999999999998]
[]
["Quelle: Wissenschaftsstatistik Stifterverband."]

{"sheet":"9.","index":9,"n_rows":19,"n_cols":3,"rows_kept":19,"cut":false,"hidden":false,"merged":[[1,0,1,2]]}
[]
["Die 15 Haupt-Herkunftsländer des wissenschaftlichen Forschungspersonals der Unternehmen mit nicht-deutschem wissenschaftlichen Forschungspersonal 2013 (in Prozent)"]
[1,"Russland",10.082000000000001]
[2,"Frankreich",9.8089999999999993]
[3,"Polen",8.1739999999999995]
[4,"Türkei",7.0839999999999996]
[5,"China",5.9950000000000001]
[6,"Österreich",5.7220000000000004]
[7,"Italien",4.6319999999999997]
[8,"Niederlande",4.6319999999999997]
[9,"Indien",3.8149999999999995]
[10,"Spanien",3.8149999999999995]
[11,"UK",3.27]
[12,"Ukraine",3.27]
[13,"Kroatien",2.1800000000000002]
[14,"Rumänien",2.1800000000000002]
[15,"Griechenland",1.635]
[]
["Quelle: Wissenschaftsstatistik Stifterverband. Anmerkung: Die Frage lautete: Bitte nennen Sie die häufigste Staatsangehörigkeit Ihres nicht-deutschen wissenschaftlichen FuE-Personals in 2013 und schätzen Sie den jeweiligen ungefähren Anteil in Prozent am gesamten nicht-deutschen wissenschaftlichen FuE-Personal. Interpretationsbeispiel: 10 Prozent der Unternehmen mit nicht-deutschem wissenschaftlichem Forschungspersonal gaben an, dass die meisten ihrer nicht-deutschen Forscherinnen und Forscher aus Russland stammen."]

{"sheet":"10.","index":10,"n_rows":25,"n_cols":2,"rows_kept":25,"cut":false,"hidden":false,"merged":[]}
["Befristetes wiss. Forschungspersonal - Unternehmen nach Unternehmensgroessenklasse und Branchengruppe, 2013 (in Prozent)"]
[null,"Anteil des befristeten Forschungspersonals"]
["Branchengruppe"]
["Chemiebranche (n=52)",8.7119999999999997]
["Pharmabranche (n=21)",5.41]
["Elektrobranche (n=175)",7.3209999999999997]
["Maschinenbaubranche (n=158)",4.6139999999999999]
["KFZ-Branche (n=21)",5.0599999999999996]
["IKT-Branche (n=77)",3.5630000000000002]
["Dienstleistungsbranche (n=223)",16.902000000000001]
["Sonstige Branchen (sehr heterogen) (n=306)",7.3959999999999999]
[]
["Total (n=1,033)",8.7029999999999994]
[]
["Befristetes wiss. Forschungspersonal - Unternehmen nach Unternehmensgroessenklasse und Branchengruppe, 2013 (in Prozent)"]
[null,"Anteil des befristeten Forschungspersonals"]
["Unternehmensgroessenklasse"]
["unter 100 Beschäftigte (n=712)",9.7650000000000006]
["100-249 Beschäftigte (n=152)",6.577]
["250-499 Beschäftigte (n=54)",6.8070000000000004]
["500 und mehr Beschäftigte (n=115)",5.8259999999999996]
[]
["Total (n=1,033)",8.7029999999999994]
[]
["Quelle: Wissenschaftsstatistik Stifterverband. "]